fUSD/lending_fUSD_20250926
["ID","MTS","AMOUNT","RATE_DAILY","PERIOD"]
[387781664,1758854804030,-150.0,0.00019,2]
[387781665,1758854804057,-70.77816971,0.00019039,2]
[387781666,1758854806109,-203.33350099,0.00019039,2]
[387781667,1758854807617,-164.1,0.00019039,2]
[387781668,1758854811459,-200.63092453,0.00019039,2]
[387781669,1758854814336,-171.0,0.00019039,2]
[387781670,1758854818158,-151.0,0.00019039,2]
[387781671,1758854820102,-89.38546707,0.00019039,2]
[387781672,1758854820126,-150.0,0.00019048,2]
[387781673,1758854820153,-131.6045666,0.00019053,2]
[387781674,1758854822631,-18.3954334,0.00019053,2]
[387781675,1758854822655,-162.33,0.00019067,2]
[387781676,1758854822676,-100.8791332,0.00019084,2]
[387781677,1758854826990,-159.798,0.00019084,2]
[387781678,1758854828679,-286.43742999,0.00019084,2]
[387781679,1758854831031,-288.84553743,0.00019084,2]
[387781680,1758854832546,-163.51819753,0.00019084,2]
[387781681,1758854834609,-277.11307547,0.00018779,2]
[387781682,1758854836024,-167.17621439,0.00018779,2]
[387781683,1758854840227,-639.60178028,0.00018779,2]
[387781684,1758854842174,-163.06,0.00018779,2]
[387781685,1758854848747,-262.47758883,0.00018779,2]
[387781686,1758854850821,-296.60996957,0.00018779,2]
[387781687,1758854854677,-260.10951164,0.00018779,2]
[387781688,1758854857152,-200.2557781,0.00018779,2]
[387781689,1758854863396,-323.43973638,0.00018779,2]
[387781690,1758854866676,-156.87180028,0.00018779,2]
[387781691,1758854868176,-199.65846334,0.00018779,2]
[387781692,1758854872034,-210.75608353,0.00018779,2]
[387781693,1758854875712,-225.26022729,0.00018779,2]
[387781694,1758854878728,-188.36964918,0.00018779,2]
[387781695,1758854880696,-257.92284308,0.00018779,2]
[387781696,1758854882716,-224.29814978,0.00018779,2]
[387781697,1758854886056,-329.69900714,0.00018779,2]
[387781698,1758854888039,-188.08,0.00018779,2]
[387781699,1758854891598,-153.84,0.00018779,2]
[387781700,1758854894047,-298.76155775,0.00018779,2]
[387781701,1758854895516,-171.45143603,0.00018779,2]
[387781702,1758854895539,-157.09712794,0.00018779,2]
[387781703,1758854899570,-179.93343143,0.00018685,2]
[387781704,1758854901498,-163.37139681,0.00018685,2]
[387781705,1758854902886,-153.10796383,0.00018685,2]
[387781706,1758854904308,-127.97316793,0.00018685,2]
[387781708,1758855014439,165.58305255,1e-08,2]
[387781710,1758855032391,-150.0,0.00018727,2]
[387781711,1758855032401,-1097.24780196,0.00019084,2]
[387781712,1758855032411,-195.0,0.00019101,2]
[387781713,1758855032421,-150.0,0.00019111,2]
[387781714,1758855032431,-168.73211501,0.00019136,3]
[387781715,1758855032447,-497.26788499,0.00019136,3]
[387781716,1758855032457,-150.0,0.00019143,2]
[387781717,1758855032467,-150.0,0.00019143,2]
[387781718,1758855032476,-150.0,0.00019158,2]
[387781719,1758855032486,-150.0,0.00019167,2]
[387781720,1758855032496,-180.39094823,0.00019203,2]
[387781721,1758855032506,-150.0,0.00019238,4]
[387781722,1758855032515,-150.0,0.0001925,4]
[387781723,1758855032524,-150.0,0.0001925,4]
[387781724,1758855032534,-150.0,0.00019263,4]
[387781725,1758855032544,-150.0,0.00019333,4]
[387781726,1758855032553,-150.0,0.00019333,4]
[387781727,1758855032563,-150.0,0.00019333,4]
[387781728,1758855032572,-150.0,0.00019333,4]
[387781729,1758855032581,-150.0,0.00019333,4]
[387781730,1758855032590,-1200.0,0.00019367,2]
[387781731,1758855032601,-150.0,0.00019368,4]
[387781732,1758855032610,-1473.42250472,0.00019399,2]
[387781733,1758855032619,-200.0,0.000194,7]
[387781734,1758855032628,-275.0,0.00019427,2]
[387781735,1758855032637,-150.0,0.00019429,4]
[387781736,1758855032647,-150.0,0.00019429,4]
[387781737,1758855032656,-150.0,0.00019474,4]
[387781738,1758855032667,-524.36560506,0.00019491,2]
[387781739,1758855032677,-150.0,0.000195,4]
[387781740,1758855032687,-150.0,0.000195,4]
[387781741,1758855032696,-150.0,0.000195,4]
[387781742,1758855032706,-150.0,0.000195,4]
[387781743,1758855032716,-150.0,0.000195,4]
[387781744,1758855032725,-500.0,0.000195,7]
[387781745,1758855032735,-150.0,0.00019524,4]
[387781746,1758855032755,-167.29,0.00019527,2]
[387781747,1758855032767,-150.0,0.00019556,4]
[387781749,1758855032776,-850.0,0.00019556,2]
[387781751,1758855032787,-150.0,0.00019579,4]
[387781753,1758855032797,-800.0,0.000196,7]
[387781754,1758855032808,-150.0,0.00019619,4]
[387781755,1758855032818,-150.0,0.00019667,4]
[387781757,1758855032827,-150.0,0.00019667,4]
[387781759,1758855032837,-150.0,0.00019667,4]
[387781761,1758855032847,-150.0,0.00019684,4]
[387781762,1758855032857,-39.683057,0.000197,2]
[387781768,1758855033142,-724.94822177,0.000197,2]
[387781769,1758855033155,-615.69827137,0.000197,2]
[387781770,1758855033164,-1100.0,0.000197,7]
[387781771,1758855033174,-1356.82818816,0.00019709,2]
[387781772,1758855033185,-150.0,0.00019714,4]
[387781773,1758855033194,-150.0,0.00019714,4]
[387781774,1758855033203,-150.0,0.0001975,4]
[387781775,1758855033212,-150.0,0.0001975,4]
[387781776,1758855033223,-301.91556675,0.00019772,2]
[387781777,1758855033236,-150.0,0.00019778,4]
[387781778,1758855033245,-150.0,0.00019789,4]
[387781779,1758855033256,-1400.0,0.000198,7]
[387781780,1758855033267,-150.0,0.0001981,4]
[387781781,1758855033277,-150.0,0.00019833,4]
[387781782,1758855033287,-500.0,0.00019836,2]
[387781783,1758855033297,-1844.83380117,0.00019842,2]
[387781784,1758855033308,-607.7342765,0.00019843,2]
[387781785,1758855033318,-1844.83380117,0.00019844,2]
[387781786,1758855033327,-388.86192591,0.00019845,2]
[387781787,1758855033337,-607.7342765,0.00019848,2]
[387781788,1758855033349,-1317.57574653,0.00019848,2]
[387781789,1758855033359,-384.25371257,0.00019854,2]
[387781790,1758855033368,-1844.83380117,0.0001986,2]
[387781791,1758855033378,-236.68715816,0.00019866,2]
[387781792,1758855033387,-194.30531095,0.00019867,2]
[387781793,1758855033397,-30897.45593721,0.00019869,2]
[387781794,1758855033407,-1080.18870926,0.00019872,2]
[387781795,1758855033428,-237.38703727,0.00019872,2]
[387781796,1758855033438,-441.88745727,0.00019873,2]
[387781797,1758855033458,-59.1574261,0.00019873,2]
[387781798,1758855033468,-452.55503704,0.00019873,2]
[387781799,1758855033483,-48.39524779,0.00019873,2]
[387781800,1758855033493,-500.94800064,0.00019873,2]
[387781801,1758855033503,-500.0,0.00019873,2]
[387781802,1758855033512,-494.24111743,0.00019873,2]
[387781803,1758855033524,-6.15638655,0.00019873,2]
[387781804,1758855033534,-501.8034503,0.00019873,2]
[387781805,1758855033544,-500.0,0.00019873,2]
[387781806,1758855033554,-500.0,0.00019873,2]
[387781807,1758855033564,-500.0,0.00019873,2]
[387781808,1758855033574,-505.22935731,0.00019873,2]
[387781809,1758855033583,-502.4392109,0.00019873,2]
[387781810,1758855033593,-160.65434455,0.00019873,2]
[387781811,1758855033603,-384.25371257,0.00019874,2]
[387781812,1758855033612,-1013.24942253,0.00019877,2]
[387781813,1758855033622,-151.0,0.00019878,2]
[387781814,1758855033632,-9552.16786547,0.00019878,2]
[387781815,1758855033641,-1317.57574653,0.00019881,2]
[387781816,1758855033651,-203.95499504,0.00019888,2]
[387781817,1758855033660,-322.6107,0.00019888,2]
[387781818,1758855033670,-151.0,0.00019888,2]
[387781819,1758855033680,-168.59527158,0.00019888,2]
[387781820,1758855033690,-151.0,0.00019888,2]
[387781821,1758855033699,-151.0,0.00019888,2]
[387781822,1758855033710,-151.0,0.00019888,2]
[387781823,1758855033719,-500.0,0.00019888,2]
[387781824,1758855033730,-151.0,0.00019888,2]
[387781825,1758855033740,-500.0,0.00019888,2]
[387781826,1758855033752,-151.0,0.00019888,2]
[387781827,1758855033762,-500.0,0.00019888,2]
[387781828,1758855033773,-151.0,0.00019888,2]
[387781829,1758855033783,-500.0,0.00019888,2]
[387781830,1758855033793,-151.0,0.00019888,2]
[387781831,1758855033803,-500.0,0.00019888,2]
[387781832,1758855033812,-151.0,0.00019888,2]
[387781833,1758855033822,-500.0,0.00019888,2]
[387781834,1758855033833,-151.0,0.00019888,2]
[387781835,1758855033843,-228.97406609,0.00019888,2]
[387781836,1758855033853,-481.61907739,0.00019888,2]
[387781837,1758855033865,-18.38092261,0.00019888,2]
[387781838,1758855033875,-151.0,0.00019888,2]
[387781839,1758855033885,-151.0,0.00019888,2]
[387781840,1758855033895,-500.0,0.00019888,2]
[387781841,1758855033907,-1000.0,0.00019888,2]
[387781842,1758855033917,-1000.0,0.00019888,2]
[387781843,1758855033927,-500.0,0.00019888,2]
[387781844,1758855033938,-151.0,0.00019888,2]
[387781845,1758855033949,-500.0,0.00019888,2]
[387781846,1758855033958,-1000.0,0.00019888,2]
[387781847,1758855033968,-151.0,0.00019888,2]
[387781848,1758855033978,-500.0,0.00019888,2]
[387781849,1758855033990,-1000.0,0.00019888,2]
[387781850,1758855034000,-151.0,0.00019888,2]
[387781851,1758855034010,-165.11078088,0.00019888,2]
[387781852,1758855034020,-1000.0,0.00019888,2]
[387781853,1758855034030,-1000.0,0.00019888,2]
[387781854,1758855034039,-1000.0,0.00019888,2]
[387781855,1758855034049,-1000.0,0.00019888,2]
[387781856,1758855034059,-200.0,0.00019888,2]
[387781857,1758855034068,-1000.0,0.00019888,2]
[387781858,1758855034078,-200.0,0.00019888,2]
[387781859,1758855034088,-466.7124663,0.00019888,2]
[387781860,1758855034100,-533.2875337,0.00019888,2]
[387781861,1758855034110,-200.0,0.00019888,2]
[387781862,1758855034120,-556.69598983,0.00019888,2]
[387781863,1758855034132,-443.30401017,0.00019888,2]
[387781864,1758855034141,-200.0,0.00019888,2]
[387781865,1758855034151,-821.19598983,0.00019888,2]
[387781866,1758855038298,-178.80401017,0.00019888,2]
[387781867,1758855038307,-200.0,0.00019888,2]
[387781868,1758855038317,-1000.0,0.00019888,2]
[387781869,1758855038326,-257.41285124,0.00019888,2]
[387781870,1758855038336,-1000.0,0.00019888,2]
[387781871,1758855038345,-1000.0,0.00019888,2]
[387781872,1758855038354,-151.0,0.00019888,2]
[387781873,1758855038363,-276.59838567,0.00019888,2]
[387781874,1758855038372,-415.89470892,0.00019888,2]
[387781875,1758855038403,-584.10529108,0.00019888,2]
[387781876,1758855038413,-155.42330392,0.00019888,2]
[387781877,1758855038424,-844.57669608,0.00019888,2]
[387781878,1758855038434,-1000.0,0.00019888,2]
[387781879,1758855038443,-58.90920392,0.00019888,2]
[387781884,1758855041285,-441.09079608,0.00019888,2]
[387781885,1758855041295,-1000.0,0.00019888,2]
[387781886,1758855041305,-406.34788447,0.00019888,2]
[387781887,1758855041314,-1026.00842951,0.00019888,2]
[387781888,1758855041323,-607.7342765,0.00019888,2]
[387781889,1758855041333,-1236.78856591,0.00019888,2]
[387781890,1758855041342,-14338.38951042,0.0001989,2]
[387781891,1758855041351,-236.68715816,0.00019891,2]
[387781892,1758855041361,-310.9709092,0.00019892,2]
[387781893,1758855041370,-454.64221565,0.00019892,2]
[387781894,1758855041379,-1322.316755,0.00019894,2]
[387781895,1758855041389,-1322.31675493,0.00019895,2]
[387781896,1758855041399,-150.0,0.00019895,4]
[387781897,1758855041408,-1322.31675493,0.00019895,2]
[387781898,1758855041417,-281.92916638,0.00019896,2]
[387781899,1758855041427,-160.65434455,0.00019896,2]
[387781900,1758855041436,-151.0,0.00019896,2]
[387781901,1758855041445,-1322.31675493,0.00019896,2]
[387781902,1758855041455,-1322.31675493,0.00019897,2]
[387781903,1758855041464,-194.30531095,0.00019897,2]
[387781904,1758855041474,-1322.31675493,0.00019897,2]
[387781905,1758855041483,-30897.45593721,0.00019898,2]
[387781906,1758855041492,-1322.31675493,0.00019898,2]
[387781907,1758855041502,-1322.31675493,0.00019899,2]
[387781908,1758855041513,-194.30531095,0.00019899,2]
[387781909,1758855041522,-817.87221549,0.00019899,2]
[387781910,1758855041531,-500.0,0.00019899,2]
[387781911,1758855041541,-384.37588815,0.00019899,2]
[387781912,1758855041550,-500.0,0.00019899,2]
[387781913,1758855041559,-500.0,0.00019899,2]
[387781914,1758855041569,-500.0,0.00019899,2]
[387781915,1758855041578,-500.0,0.00019899,2]
[387781916,1758855041587,-500.0,0.00019899,2]
[387781917,1758855041597,-500.0,0.00019899,2]
[387781918,1758855041606,-500.0,0.00019899,2]
[387781919,1758855041615,-500.0,0.00019899,2]
[387781920,1758855041624,-500.0,0.00019899,2]
[387781921,1758855041634,-500.0,0.00019899,2]
[387781922,1758855041643,-500.0,0.00019899,2]
[387781923,1758855041652,-500.0,0.00019899,2]
[387781924,1758855041662,-500.0,0.00019899,2]
[387781925,1758855041671,-500.0,0.00019899,2]
[387781926,1758855041680,-500.0,0.00019899,2]
[387781927,1758855041689,-500.0,0.00019899,2]
[387781928,1758855041698,-500.0,0.00019899,2]
[387781929,1758855041707,-500.0,0.00019899,2]
[387781930,1758855041716,-500.0,0.00019899,2]
[387781931,1758855041726,-500.0,0.00019899,2]
[387781932,1758855041735,-500.0,0.00019899,2]
[387781933,1758855041744,-500.0,0.00019899,2]
[387781934,1758855041755,-500.0,0.00019899,2]
[387781935,1758855041764,-500.0,0.00019899,2]
[387781936,1758855041774,-500.0,0.00019899,2]
[387781937,1758855041783,-500.0,0.00019899,2]
[387781938,1758855041792,-500.0,0.00019899,2]
[387781939,1758855041801,-500.0,0.00019899,2]
[387781940,1758855041811,-500.0,0.00019899,2]
[387781941,1758855041820,-500.0,0.00019899,2]
[387781942,1758855041829,-500.0,0.00019899,2]
[387781943,1758855041838,-500.0,0.00019899,2]
[387781944,1758855041847,-500.0,0.00019899,2]
[387781945,1758855041857,-500.0,0.00019899,2]
[387781946,1758855041866,-500.0,0.00019899,2]
[387781947,1758855041875,-568.93201784,0.00019899,2]
[387781948,1758855041884,-500.0,0.00019899,2]
[387781949,1758855041893,-500.0,0.00019899,2]
[387781950,1758855041903,-500.0,0.00019899,2]
[387781951,1758855041916,-500.0,0.00019899,2]
[387781952,1758855041925,-500.0,0.00019899,2]
[387781953,1758855041934,-500.0,0.00019899,2]
[387781954,1758855041943,-500.0,0.00019899,2]
[387781955,1758855041952,-500.0,0.00019899,2]
[387781956,1758855041961,-500.0,0.00019899,2]
[387781957,1758855041971,-500.0,0.00019899,2]
[387781958,1758855041983,-500.0,0.00019899,2]
[387781959,1758855041992,-500.0,0.00019899,2]
[387781960,1758855042001,-500.0,0.00019899,2]
[387781961,1758855042011,-500.0,0.00019899,2]
[387781962,1758855042021,-500.0,0.00019899,2]
[387781963,1758855042031,-500.0,0.00019899,2]
[387781964,1758855042040,-500.0,0.00019899,2]
[387781965,1758855042049,-350.0,0.00019899,2]
[387781966,1758855042059,-500.0,0.00019899,2]
[387781967,1758855042068,-500.0,0.00019899,2]
[387781968,1758855042077,-500.0,0.00019899,2]
[387781969,1758855042087,-500.0,0.00019899,2]
[387781970,1758855042096,-500.0,0.00019899,2]
[387781971,1758855042105,-1322.31675493,0.00019899,2]
[387781972,1758855042114,-1557.51896664,0.000199,2]
[387781973,1758855042123,-47586.8629,0.000199,2]
[387781974,1758855042132,-1000.0,0.000199,2]
[387781975,1758855042141,-7038.2152,0.000199,2]
[387781976,1758855042151,-1844.83380117,0.000199,2]
[387781977,1758855042160,-1102.1491,0.000199,2]
[387781978,1758855042169,-224.37603984,0.000199,2]
[387781979,1758855042178,-1557.51896664,0.000199,2]
[387781980,1758855042187,-561.15237656,0.000199,2]
[387781981,1758855042197,-957.3323,0.000199,2]
[387781982,1758855042206,-200.0,0.000199,7]
[387781983,1758855042215,-1322.31675493,0.000199,2]
[387781984,1758855042224,-2500.0,0.000199,2]
[387781985,1758855042234,-2944.2549209,0.000199,2]
[387781986,1758855042243,-930.51863124,0.000199,2]
[387781987,1758855042252,-339.62511115,0.000199,2]
[387781988,1758855042263,-177.90169941,0.000199,2]
[387781989,1758855042272,-2522.35665294,0.000199,2]
[387781990,1758855042282,-236.68715816,0.00019902,2]
[387781991,1758855042291,-607.7342765,0.00019904,2]
[387781992,1758855042300,-150.0,0.00019905,4]
[387781993,1758855042309,-160.65434455,0.00019905,2]
[387781994,1758855042318,-160.65434455,0.00019905,2]
[387781995,1758855042327,-384.25371257,0.00019906,2]
[387781996,1758855042336,-30897.45593721,0.00019906,2]
[387781997,1758855042346,-281.92916638,0.00019908,2]
[387781998,1758855042355,-281.92916638,0.00019908,2]
[387781999,1758855042364,-384.25371257,0.00019909,2]
[387782000,1758855042374,-1317.57574653,0.00019916,2]
[387782001,1758855042383,-1844.83380117,0.00019917,2]
[387782002,1758855042392,-1317.57574653,0.00019922,2]
[387782003,1758855042402,-194.30531095,0.00019924,2]
[387782004,1758855042411,-30897.45593721,0.00019927,2]
[387782005,1758855042420,-160.65434455,0.00019928,2]
[387782006,1758855042429,-1844.83380117,0.00019928,2]
[387782007,1758855042439,-30897.45593721,0.00019928,2]
[387782008,1758855042448,-151.0,0.0001993,2]
[387782009,1758855042457,-1236.78856591,0.0001993,2]
[387782010,1758855042467,-388.86192591,0.00019932,2]
[387782011,1758855042476,-236.68715816,0.00019933,2]
[387782012,1758855042486,-9905.5980765,0.00019933,2]
[387782013,1758855042495,-236.68715816,0.00019935,2]
[387782014,1758855042506,-160.65434455,0.00019935,2]
[387782015,1758855042515,-412.07,0.00019935,2]
[387782016,1758855042525,-160.65434455,0.00019936,2]
[387782017,1758855042535,-281.92916638,0.00019938,2]
[387782018,1758855042544,-1317.57574653,0.00019938,2]
[387782019,1758855042553,-1236.78856591,0.00019939,2]
[387782020,1758855042562,-194.30531095,0.0001994,2]
[387782021,1758855042572,-236.68715816,0.00019943,2]
[387782022,1758855042581,-30897.45593721,0.00019947,2]
[387782023,1758855042590,-310.9709092,0.00019949,2]
[387782024,1758855042599,-165.644,0.00019952,2]
[387782025,1758855042608,-4730.036,0.00019952,2]
[387782026,1758855042617,-1236.78856591,0.00019953,2]
[387782027,1758855042627,-1236.78856591,0.00019955,2]
[387782028,1758855042636,-1317.57574653,0.00019957,2]
[387782029,1758855042645,-388.86192591,0.0001996,2]
[387782030,1758855042654,-30897.45593721,0.00019962,2]
[387782031,1758855042664,-236.68715816,0.00019966,2]
[387782032,1758855042674,-388.86192591,0.0001997,2]
[387782033,1758855042682,-310.9709092,0.00019972,2]
[387782034,1758855042690,-501.77896181,0.00019973,2]
[387782035,1758855042699,-500.0,0.00019973,2]
[387782036,1758855042709,-500.0,0.00019973,2]
[387782037,1758855042718,-384.25371257,0.00019974,2]
[387782038,1758855042728,-281.92916638,0.00019976,2]
[387782039,1758855042738,-384.25371257,0.0001998,2]
[387782040,1758855042747,-952.82137193,0.0001998,2]
[387782041,1758855042759,-310.9709092,0.00019981,2]
[387782042,1758855042768,-388.86192591,0.00019983,2]
[387782043,1758855042777,-388.86192591,0.00019983,2]
[387782044,1758855042786,-310.9709092,0.00019985,2]
[387782045,1758855042796,-607.7342765,0.00019988,2]
[387782046,1758855042806,-310.9709092,0.00019988,2]
[387782047,1758855042815,-10272.10520533,0.00019988,2]
[387782048,1758855042826,-281.92916638,0.00019989,2]
[387782049,1758855042837,-194.30531095,0.00019989,2]
[387782050,1758855042847,-607.7342765,0.0001999,2]
[387782051,1758855042856,-281.92916638,0.0001999,2]
[387782052,1758855042866,-194.30531095,0.00019991,2]
[387782053,1758855042876,-1236.78856591,0.00019992,2]
[387782054,1758855042887,-388.86192591,0.00019993,2]
[387782055,1758855042898,-607.7342765,0.00019995,2]
[387782056,1758855042911,-1844.83380117,0.00019996,2]
[387782057,1758855042920,-247.28115479,0.00019996,2]
[387782058,1758855042930,-384.25371257,0.00019998,2]
[387782059,1758855042939,-1236.78856591,0.00019999,2]
[387782060,1758855042949,-185.45940652,0.00019999,2]
[387782061,1758855042958,-500.0,0.00019999,2]
[387782062,1758855042968,-177.31367003,0.00019999,2]
[387782063,1758855042978,-272.80999188,0.00019999,2]
[387782064,1758855042987,-1000.0,0.00019999,2]
[387782065,1758855042997,-155.735,0.00019999,2]
[387782066,1758855043006,-30784.9132392,0.00019999,2]
[387782067,1758855043016,-13358.2290063,0.00019999,2]
[387782068,1758855043025,-166.6202137,0.00019999,2]
[387782069,1758855043034,-150.0,0.00019999,2]
[387782070,1758855043044,-299.086492,0.00019999,2]
[387782071,1758855043053,-299.086492,0.00019999,2]
[387782072,1758855043063,-299.086492,0.00019999,2]
[387782073,1758855043072,-151.0,0.00019999,2]
[387782074,1758855043081,-299.086492,0.00019999,2]
[387782075,1758855043090,-151.0,0.00019999,2]
[387782076,1758855043099,-151.0,0.00019999,2]
[387782077,1758855043109,-151.0,0.00019999,2]
[387782078,1758855043118,-151.0,0.00019999,2]
[387782079,1758855043127,-151.0,0.00019999,2]
[387782080,1758855043137,-151.0,0.00019999,2]
[387782081,1758855043147,-352.140827,0.00019999,2]
[387782082,1758855043156,-151.0,0.00019999,2]
[387782083,1758855043165,-352.140827,0.00019999,2]
[387782084,1758855043175,-154.843672,0.00019999,2]
[387782086,1758855043184,-151.0,0.00019999,2]
[387782087,1758855043193,-151.0,0.00019999,2]
[387782088,1758855043202,-259.472157,0.00019999,2]
[387782089,1758855043212,-247.860486,0.00019999,2]
[387782090,1758855043221,-352.140827,0.00019999,2]
[387782091,1758855043231,-158.252235,0.00019999,2]
[387782092,1758855043239,-151.0,0.00019999,2]
[387782093,1758855043248,-247.860486,0.00019999,2]
[387782094,1758855043258,-352.140827,0.00019999,2]
[387782095,1758855043267,-151.0,0.00019999,2]
[387782096,1758855043277,-247.860486,0.00019999,2]
[387782097,1758855043287,-247.860486,0.00019999,2]
[387782098,1758855043297,-151.0,0.00019999,2]
[387782099,1758855043307,-154.157866,0.00019999,2]
[387782100,1758855043317,-151.0,0.00019999,2]
[387782101,1758855043327,-151.0,0.00019999,2]
[387782102,1758855043336,-151.0,0.00019999,2]
[387782103,1758855043346,-151.0,0.00019999,2]
[387782104,1758855043355,-151.0,0.00019999,2]
[387782105,1758855043365,-151.0,0.00019999,2]
[387782106,1758855043375,-151.0,0.00019999,2]
[387782107,1758855043384,-151.0,0.00019999,2]
[387782109,1758855043393,-234.22851375,0.00019999,2]
[387782111,1758855043403,-151.0,0.00019999,2]
[387782113,1758855043412,-151.0,0.00019999,2]
[387782114,1758855043421,-151.0,0.00019999,2]
[387782115,1758855043430,-151.0,0.00019999,2]
[387782116,1758855043440,-151.0,0.00019999,2]
[387782117,1758855043449,-151.0,0.00019999,2]
[387782118,1758855043461,-151.0,0.00019999,2]
[387782119,1758855043476,-207.369954,0.00019999,2]
[387782120,1758855043486,-151.0,0.00019999,2]
[387782121,1758855043497,-151.0,0.00019999,2]
[387782122,1758855043507,-151.0,0.00019999,2]
[387782123,1758855043517,-151.0,0.00019999,2]
[387782124,1758855043527,-151.221507,0.00019999,2]
[387782125,1758855043537,-151.0,0.00019999,2]
[387782126,1758855043547,-151.0,0.00019999,2]
[387782127,1758855043556,-151.0,0.00019999,2]
[387782128,1758855043566,-151.0,0.00019999,2]
[387782129,1758855043576,-291.821352,0.00019999,2]
[387782130,1758855043585,-151.0,0.00019999,2]
[387782131,1758855043594,-438.20693,0.00019999,2]
[387782132,1758855043603,-438.20693,0.00019999,2]
[387782133,1758855043612,-151.0,0.00019999,2]
[387782134,1758855043622,-180.665066,0.00019999,2]
[387782135,1758855043631,-438.20693,0.00019999,2]
[387782136,1758855043640,-180.665066,0.00019999,2]
[387782137,1758855043649,-438.20693,0.00019999,2]
[387782138,1758855043658,-180.665066,0.00019999,2]
[387782139,1758855043668,-180.665066,0.00019999,2]
[387782140,1758855043677,-184.085016,0.00019999,2]
[387782141,1758855043686,-184.085016,0.00019999,2]
[387782142,1758855043695,-184.085016,0.00019999,2]
[387782143,1758855043704,-184.085016,0.00019999,2]
[387782144,1758855043713,-151.0,0.00019999,2]
[387782145,1758855043722,-151.0,0.00019999,2]
[387782146,1758855043731,-151.0,0.00019999,2]
[387782147,1758855043741,-157.529227,0.00019999,2]
[387782148,1758855043751,-151.0,0.00019999,2]
[387782149,1758855043761,-158.873765,0.00019999,2]
[387782150,1758855043770,-151.0,0.00019999,2]
[387782151,1758855043779,-153.356338,0.00019999,2]
[387782152,1758855043788,-150.0,0.00019999,2]
[387782153,1758855043797,-150.0,0.00019999,2]
[387782154,1758855043807,-500.0,0.00019999,2]
[387782155,1758855043816,-151.0,0.00019999,2]
[387782156,1758855043825,-500.0,0.00019999,2]
[387782157,1758855043834,-3630.0,0.00019999,2]
[387782158,1758855043844,-151.0,0.00019999,2]
[387782159,1758855043853,-151.0,0.00019999,2]
[387782160,1758855043862,-151.987294,0.00019999,2]
[387782161,1758855043871,-150.0,0.00019999,2]
[387782162,1758855043882,-500.0,0.00019999,2]
[387782163,1758855043892,-500.0,0.00019999,2]
[387782164,1758855043904,-151.42179005,0.00019999,2]
[387782165,1758855043916,-500.0,0.00019999,2]
[387782166,1758855043925,-151.0,0.00019999,2]
[387782167,1758855043934,-151.0,0.00019999,2]
[387782168,1758855043943,-151.0,0.00019999,2]
[387782169,1758855043954,-151.0,0.00019999,2]
[387782170,1758855043964,-151.203105,0.00019999,2]
[387782171,1758855044142,-203.884512,0.00019999,2]
[387782172,1758855044151,-151.0,0.00019999,2]
[387782173,1758855044161,-438.109696,0.00019999,2]
[387782174,1758855044170,-438.109696,0.00019999,2]
[387782176,1758855044179,-438.109696,0.00019999,2]
[387782178,1758855044188,-438.109696,0.00019999,2]
[387782180,1758855044197,-151.0,0.00019999,2]
[387782182,1758855044207,-151.0,0.00019999,2]
[387782184,1758855044216,-192.277788,0.00019999,2]
[387782186,1758855044226,-151.0,0.00019999,2]
[387782188,1758855044235,-151.0,0.00019999,2]
[387782190,1758855044244,-151.0,0.00019999,2]
[387782192,1758855044254,-151.0,0.00019999,2]
[387782194,1758855044264,-151.0,0.00019999,2]